[Event "*** Titled Tuesday Blitz"]
[Site "Chess.com"]
[Date "2021.02.16"]
[Round "7"]
[White "Vanina1989"]
[Black "amintabatabaei"]
[Result "0-1"]
[WhiteElo "2743"]
[BlackElo "2924"]
[TimeControl "180+1"]
[EndTime "11:19:20 PST"]
[Termination "amintabatabaei won on time"]

1. d4 {[%clk 0:03:00.9]} 1... Nf6 {[%clk 0:03:00]} 2. c4 {[%clk 0:03:00.6]} 2...
g6 {[%clk 0:03:00.5]} 3. Nc3 {[%clk 0:03:00.4]} 3... Bg7 {[%clk 0:03:01.2]} 4.
e4 {[%clk 0:03:00.8]} 4... d6 {[%clk 0:03:02]} 5. Nf3 {[%clk 0:03:01.3]} 5...
O-O {[%clk 0:03:02.6]} 6. Be2 {[%clk 0:03:02]} 6... e5 {[%clk 0:03:03.2]} 7. O-O
{[%clk 0:03:02.2]} 7... Nc6 {[%clk 0:03:03.8]} 8. Be3 {[%clk 0:03:03]} 8... Ng4
{[%clk 0:02:57.5]} 9. Bg5 {[%clk 0:03:03.2]} 9... f6 {[%clk 0:02:57.8]} 10. Bh4
{[%clk 0:03:03.7]} 10... Qe8 {[%clk 0:02:54.7]} 11. d5 {[%clk 0:02:59.7]} 11...
Nd8 {[%clk 0:02:33.6]} 12. Rc1 {[%clk 0:02:52.5]} 12... h5 {[%clk 0:02:28.1]}
13. Nd2 {[%clk 0:02:42.9]} 13... Nh6 {[%clk 0:02:20.9]} 14. b4 {[%clk 0:02:40]}
14... Nhf7 {[%clk 0:02:02.6]} 15. Bg3 {[%clk 0:02:34.3]} 15... f5 {[%clk
0:02:01.7]} 16. exf5 {[%clk 0:02:33.5]} 16... Bxf5 {[%clk 0:01:59.2]} 17. Nde4
{[%clk 0:02:31.9]} 17... Qe7 {[%clk 0:01:57.7]} 18. f3 {[%clk 0:01:59.8]} 18...
a5 {[%clk 0:01:55.7]} 19. a3 {[%clk 0:01:55.7]} 19... Bh6 {[%clk 0:01:54.9]} 20.
Ra1 {[%clk 0:01:47.1]} 20... Ng5 {[%clk 0:01:54.5]} 21. bxa5 {[%clk 0:01:28.6]}
21... Rxa5 {[%clk 0:01:50.6]} 22. Qe1 {[%clk 0:01:28.5]} 22... Nxe4 {[%clk
0:01:30.5]} 23. Nxe4 {[%clk 0:01:27.5]} 23... b6 {[%clk 0:01:28.5]} 24. Bh4
{[%clk 0:01:20.4]} 24... Be3+ {[%clk 0:01:12.8]} 25. Kh1 {[%clk 0:01:17.3]}
25... Qg7 {[%clk 0:01:13.5]} 26. Bd3 {[%clk 0:01:06.2]} 26... Bd4 {[%clk
0:01:12.2]} 27. Ra2 {[%clk 0:01:06.8]} 27... Nb7 {[%clk 0:01:12.1]} 28. g4
{[%clk 0:00:54.5]} 28... hxg4 {[%clk 0:01:03.7]} 29. fxg4 {[%clk 0:00:49.8]}
29... Bxe4+ {[%clk 0:01:04]} 30. Bxe4 {[%clk 0:00:49.2]} 30... Rxf1+ {[%clk
0:01:04.6]} 31. Qxf1 {[%clk 0:00:49.3]} 31... Nc5 {[%clk 0:01:05.5]} 32. Bg2
{[%clk 0:00:21.6]} 32... Ra8 {[%clk 0:01:03.9]} 33. Bf6 {[%clk 0:00:21.7]} 33...
Qh7 {[%clk 0:01:01.7]} 34. g5 {[%clk 0:00:20.3]} 34... Qh4 {[%clk 0:00:59.1]}
35. a4 {[%clk 0:00:17.8]} 35... Rf8 {[%clk 0:00:53.7]} 36. Qe2 {[%clk
0:00:15.2]} 36... Nd7 {[%clk 0:00:49.3]} 37. Qe4 {[%clk 0:00:07.5]} 37... Qxe4
{[%clk 0:00:49.4]} 38. Bxe4 {[%clk 0:00:07.4]} 38... Nxf6 {[%clk 0:00:50.3]} 39.
gxf6 {[%clk 0:00:07.4]} 39... Rxf6 {[%clk 0:00:51.2]} 40. Kg2 {[%clk 0:00:06.9]}
40... Rf4 {[%clk 0:00:50.7]} 41. Bb1 {[%clk 0:00:05]} 41... Bc5 {[%clk
0:00:49.8]} 42. Kg3 {[%clk 0:00:04.8]} 42... Kg7 {[%clk 0:00:47]} 43. Bd3 {[%clk
0:00:05]} 43... Rd4 {[%clk 0:00:45.2]} 44. Bf1 {[%clk 0:00:05.2]} 44... Rd1
{[%clk 0:00:44.1]} 45. Kg2 {[%clk 0:00:05.7]} 45... Kh6 {[%clk 0:00:40.4]} 46.
a5 {[%clk 0:00:06.1]} 46... bxa5 {[%clk 0:00:41.2]} 47. Rxa5 {[%clk 0:00:05.8]}
47... Rd2+ {[%clk 0:00:41.8]} 48. Kg3 {[%clk 0:00:06.4]} 48... Bg1 {[%clk
0:00:40.1]} 49. h3 {[%clk 0:00:06.1]} 49... Kg5 {[%clk 0:00:34.6]} 50. Ra3
{[%clk 0:00:05.4]} 50... Bf2+ {[%clk 0:00:33.3]} 51. Kf3 {[%clk 0:00:05.7]}
51... Bc5 {[%clk 0:00:34.1]} 52. Ra1 {[%clk 0:00:02.3]} 52... Bd4 {[%clk
0:00:34.5]} 53. Rb1 {[%clk 0:00:01.6]} 53... Rf2+ {[%clk 0:00:32.4]} 54. Kg3
{[%clk 0:00:01.9]} 54... e4 {[%clk 0:00:32.2]} 55. Bg2 {[%clk 0:00:01.2]} 55...
e3 {[%clk 0:00:32.1]} 56. Re1 {[%clk 0:00:01.2]} 56... Rc2 {[%clk 0:00:28.8]}
57. h4+ {[%clk 0:00:01.2]} 57... Kh6 {[%clk 0:00:29]} 0-1

[Event "*** Titled Tuesday Blitz"]
[Site "Chess.com"]
[Date "2021.02.16"]
[Round "7"]
[White "DenishevM"]
[Black "ckgchess"]
[Result "0-1"]
[WhiteElo "2589"]
[BlackElo "2761"]
[TimeControl "180+1"]
[EndTime "11:19:20 PST"]
[Termination "ckgchess won by resignation"]

1. d4 {[%clk 0:02:58.9]} 1... g6 {[%clk 0:02:53.3]} 2. e4 {[%clk 0:02:57.4]}
2... Bg7 {[%clk 0:02:53.8]} 3. c3 {[%clk 0:02:54.1]} 3... c5 {[%clk 0:02:52.7]}
4. Nf3 {[%clk 0:02:54.2]} 4... cxd4 {[%clk 0:02:52.9]} 5. cxd4 {[%clk
0:02:55.1]} 5... d5 {[%clk 0:02:53.8]} 6. e5 {[%clk 0:02:53.5]} 6... Bg4 {[%clk
0:02:53.7]} 7. Nc3 {[%clk 0:02:50.1]} 7... Nc6 {[%clk 0:02:53.2]} 8. Bb5 {[%clk
0:02:48.4]} 8... Rc8 {[%clk 0:02:53.2]} 9. Be3 {[%clk 0:02:45]} 9... e6 {[%clk
0:02:53]} 10. O-O {[%clk 0:02:41]} 10... Ne7 {[%clk 0:02:52.6]} 11. h3 {[%clk
0:02:18.6]} 11... Bxf3 {[%clk 0:02:51.9]} 12. Qxf3 {[%clk 0:02:19.5]} 12... O-O
{[%clk 0:02:51.8]} 13. Rac1 {[%clk 0:02:16.6]} 13... Nf5 {[%clk 0:02:47.8]} 14.
Bxc6 {[%clk 0:02:16.8]} 14... Rxc6 {[%clk 0:02:48]} 15. Rc2 {[%clk 0:02:16.4]}
15... f6 {[%clk 0:02:42.4]} 16. exf6 {[%clk 0:01:43.7]} 16... Bxf6 {[%clk
0:02:33.7]} 17. Qg4 {[%clk 0:01:42.7]} 17... Rc4 {[%clk 0:02:21.9]} 18. b3
{[%clk 0:01:34.3]} 18... Rc6 {[%clk 0:02:22.1]} 19. Rfc1 {[%clk 0:01:32.9]}
19... Qc8 {[%clk 0:02:05]} 20. Qd1 {[%clk 0:01:21.3]} 20... Nxe3 {[%clk
0:02:00]} 21. fxe3 {[%clk 0:01:22.2]} 21... Bg5 {[%clk 0:02:00.2]} 22. Qd3
{[%clk 0:01:16.9]} 22... Qc7 {[%clk 0:01:51.8]} 23. Ne2 {[%clk 0:01:06.2]} 23...
Rxc2 {[%clk 0:01:38.2]} 24. Rxc2 {[%clk 0:01:07.1]} 24... Bxe3+ {[%clk
0:01:37.4]} 25. Qxe3 {[%clk 0:01:00.9]} 25... Qxc2 {[%clk 0:01:37.2]} 26. Qxe6+
{[%clk 0:01:01.8]} 26... Rf7 {[%clk 0:01:13.2]} 27. Qe8+ {[%clk 0:01:01.6]}
27... Kg7 {[%clk 0:01:13.8]} 28. Qe5+ {[%clk 0:01:01.5]} 28... Kh6 {[%clk
0:01:10.7]} 29. Qe3+ {[%clk 0:00:57.5]} 29... g5 {[%clk 0:01:10.1]} 30. Ng3
{[%clk 0:00:54.8]} 30... Qg6 {[%clk 0:01:03.5]} 31. h4 {[%clk 0:00:32.4]} 31...
Qf6 {[%clk 0:00:41.5]} 32. Kh2 {[%clk 0:00:26.4]} 32... Qf4 {[%clk 0:00:35.8]}
33. Qe6+ {[%clk 0:00:17.2]} 33... Kg7 {[%clk 0:00:28]} 34. h5 {[%clk 0:00:14.6]}
34... Qh4+ {[%clk 0:00:25.2]} 35. Kg1 {[%clk 0:00:15.2]} 35... Qxd4+ {[%clk
0:00:24]} 36. Kh2 {[%clk 0:00:10.5]} 36... Qh4+ {[%clk 0:00:24.6]} 37. Kg1
{[%clk 0:00:11.2]} 37... Qxg3 {[%clk 0:00:21.3]} 38. h6+ {[%clk 0:00:11.7]}
38... Kf8 {[%clk 0:00:21.4]} 39. Qc8+ {[%clk 0:00:08.2]} 39... Ke7 {[%clk
0:00:21.7]} 40. Qxb7+ {[%clk 0:00:07.9]} 40... Ke6 {[%clk 0:00:20.4]} 41. Qc8+
{[%clk 0:00:05.9]} 41... Rd7 {[%clk 0:00:20.6]} 42. Qe8+ {[%clk 0:00:05.8]}
42... Kd6 {[%clk 0:00:19.8]} 43. Qb8+ {[%clk 0:00:06.2]} 43... Rc7 {[%clk
0:00:20.4]} 44. Qd8+ {[%clk 0:00:04.2]} 44... Kc5 {[%clk 0:00:20.1]} 45. Qf8+
{[%clk 0:00:02.9]} 45... Qd6 {[%clk 0:00:17.5]} 46. b4+ {[%clk 0:00:03.3]} 46...
Kc6 {[%clk 0:00:18]} 47. b5+ {[%clk 0:00:03.5]} 47... Kc5 {[%clk 0:00:17.9]} 48.
Qf2+ {[%clk 0:00:03.7]} 48... Kxb5 {[%clk 0:00:18.2]} 0-1

[Event "*** Titled Tuesday Blitz"]
[Site "Chess.com"]
[Date "2021.02.16"]
[Round "7"]
[White "ajedrez1101"]
[Black "Julianos82"]
[Result "0-1"]
[WhiteElo "2114"]
[BlackElo "2354"]
[TimeControl "180+1"]
[EndTime "11:19:21 PST"]
[Termination "Julianos82 won by resignation"]

1. d4 {[%clk 0:03:00.9]} 1... d5 {[%clk 0:02:59.5]} 2. Bf4 {[%clk 0:03:00.4]}
2... c5 {[%clk 0:02:55.8]} 3. e3 {[%clk 0:02:59.6]} 3... Nc6 {[%clk 0:02:55.7]}
4. Nf3 {[%clk 0:02:59.3]} 4... Bg4 {[%clk 0:02:52.8]} 5. Nbd2 {[%clk 0:02:54.1]}
5... e6 {[%clk 0:02:51.9]} 6. c3 {[%clk 0:02:42.9]} 6... Bd6 {[%clk 0:02:50.7]}
7. Bg3 {[%clk 0:02:42.2]} 7... Nf6 {[%clk 0:02:48.8]} 8. Bb5 {[%clk 0:02:29.9]}
8... O-O {[%clk 0:02:42]} 9. Bxc6 {[%clk 0:02:07.2]} 9... bxc6 {[%clk
0:02:40.7]} 10. Qa4 {[%clk 0:02:07.7]} 10... Bxg3 {[%clk 0:02:33.5]} 11. hxg3
{[%clk 0:02:07.2]} 11... cxd4 {[%clk 0:02:30.2]} 12. cxd4 {[%clk 0:01:47.6]}
12... Qb6 {[%clk 0:02:27.8]} 13. Nb3 {[%clk 0:01:47.3]} 13... Bxf3 {[%clk
0:02:17.4]} 14. gxf3 {[%clk 0:01:47]} 14... Rac8 {[%clk 0:02:06.9]} 15. O-O
{[%clk 0:01:40.3]} 15... Rfe8 {[%clk 0:02:01.7]} 16. Rac1 {[%clk 0:01:26.5]}
16... e5 {[%clk 0:02:00.4]} 17. Rc2 {[%clk 0:01:22.4]} 17... e4 {[%clk
0:01:53.1]} 18. f4 {[%clk 0:01:17.3]} 18... Ng4 {[%clk 0:01:43.2]} 19. Rfc1
{[%clk 0:01:12.9]} 19... Re6 {[%clk 0:01:38.9]} 20. Na5 {[%clk 0:00:56.9]} 20...
h6 {[%clk 0:00:52.3]} 21. b3 {[%clk 0:00:55.1]} 21... Kh7 {[%clk 0:00:47.1]} 22.
Rxc6 {[%clk 0:00:51.7]} 22... Rcxc6 {[%clk 0:00:46.2]} 23. Rxc6 {[%clk
0:00:51.2]} 23... Qd8 {[%clk 0:00:42.4]} 24. Rxe6 {[%clk 0:00:35.3]} 24... fxe6
{[%clk 0:00:43.3]} 25. Nc6 {[%clk 0:00:31]} 25... Qe8 {[%clk 0:00:41.6]} 26. Ne5
{[%clk 0:00:31]} 26... Qxa4 {[%clk 0:00:34.3]} 27. bxa4 {[%clk 0:00:29.9]} 27...
Nxe5 {[%clk 0:00:34.4]} 28. dxe5 {[%clk 0:00:30.1]} 28... g5 {[%clk 0:00:32.4]}
29. fxg5 {[%clk 0:00:29.3]} 29... hxg5 {[%clk 0:00:33.3]} 30. g4 {[%clk
0:00:19.6]} 30... Kg7 {[%clk 0:00:33.2]} 31. Kf1 {[%clk 0:00:19.4]} 31... Kf7
{[%clk 0:00:33.5]} 32. Ke2 {[%clk 0:00:19.8]} 32... Ke7 {[%clk 0:00:34]} 33. Kd2
{[%clk 0:00:17]} 33... Kd7 {[%clk 0:00:34.5]} 34. Kc3 {[%clk 0:00:17.1]} 34...
Kc6 {[%clk 0:00:30.8]} 35. Kb4 {[%clk 0:00:17.2]} 35... Kb6 {[%clk 0:00:28.2]}
36. a5+ {[%clk 0:00:17.3]} 36... Kc6 {[%clk 0:00:26.3]} 37. a4 {[%clk 0:00:17]}
37... a6 {[%clk 0:00:22.1]} 38. Kb3 {[%clk 0:00:17.1]} 38... Kc5 {[%clk
0:00:22.3]} 39. Kc3 {[%clk 0:00:17.2]} 39... d4+ {[%clk 0:00:19]} 40. exd4+
{[%clk 0:00:17.1]} 40... Kd5 {[%clk 0:00:19.2]} 41. Kd2 {[%clk 0:00:12.1]} 41...
Kxd4 {[%clk 0:00:19]} 42. Ke2 {[%clk 0:00:09.9]} 42... Kxe5 {[%clk 0:00:18.8]}
43. Ke3 {[%clk 0:00:09.4]} 43... Kd5 {[%clk 0:00:19]} 44. Ke2 {[%clk 0:00:08.8]}
44... Kd4 {[%clk 0:00:18.5]} 45. Kd2 {[%clk 0:00:08.7]} 45... Kc4 {[%clk
0:00:17.3]} 46. Ke3 {[%clk 0:00:07.5]} 46... Kd5 {[%clk 0:00:17.2]} 47. Ke2
{[%clk 0:00:07.1]} 47... Kd4 {[%clk 0:00:17.4]} 48. Kd2 {[%clk 0:00:07.4]} 48...
e3+ {[%clk 0:00:15.9]} 49. fxe3+ {[%clk 0:00:06.9]} 49... Ke4 {[%clk 0:00:16.6]}
50. Ke2 {[%clk 0:00:07.4]} 50... e5 {[%clk 0:00:16.9]} 51. Kd2 {[%clk 0:00:05]}
51... Kf3 {[%clk 0:00:16.4]} 52. Kd3 {[%clk 0:00:05.1]} 52... Kxg4 {[%clk
0:00:16.1]} 53. Ke4 {[%clk 0:00:05.7]} 53... Kh3 {[%clk 0:00:15.7]} 54. Kxe5
{[%clk 0:00:06.1]} 54... g4 {[%clk 0:00:16.2]} 55. Kf4 {[%clk 0:00:06.1]} 55...
g3 {[%clk 0:00:17.1]} 56. e4 {[%clk 0:00:03.8]} 56... g2 {[%clk 0:00:18]} 0-1

[Event "*** Titled Tuesday Blitz"]
[Site "Chess.com"]
[Date "2021.02.16"]
[Round "7"]
[White "ChampStan"]
[Black "mbojan"]
[Result "1-0"]
[WhiteElo "2297"]
[BlackElo "2620"]
[TimeControl "180+1"]
[EndTime "11:19:22 PST"]
[Termination "ChampStan won by checkmate"]

1. d4 {[%clk 0:03:00.9]} 1... Nf6 {[%clk 0:03:00]} 2. c4 {[%clk 0:02:57.4]} 2...
g6 {[%clk 0:03:00.5]} 3. Nf3 {[%clk 0:02:57]} 3... Bg7 {[%clk 0:03:00.7]} 4. g3
{[%clk 0:02:57.6]} 4... d5 {[%clk 0:02:59.4]} 5. cxd5 {[%clk 0:02:56.5]} 5...
Nxd5 {[%clk 0:02:59.4]} 6. Bg2 {[%clk 0:02:57]} 6... O-O {[%clk 0:02:59.2]} 7.
O-O {[%clk 0:02:57.6]} 7... Nc6 {[%clk 0:02:58.2]} 8. Nc3 {[%clk 0:02:56.8]}
8... Nb6 {[%clk 0:02:55.9]} 9. d5 {[%clk 0:02:56.9]} 9... Na5 {[%clk 0:02:55.6]}
10. Qc2 {[%clk 0:02:57.1]} 10... Bd7 {[%clk 0:02:37.2]} 11. Rd1 {[%clk
0:02:48.3]} 11... Qc8 {[%clk 0:02:27.8]} 12. Bg5 {[%clk 0:02:44.6]} 12... Re8
{[%clk 0:02:23.1]} 13. Rac1 {[%clk 0:02:35.4]} 13... Nac4 {[%clk 0:02:11.9]} 14.
b3 {[%clk 0:02:16.4]} 14... Nd6 {[%clk 0:02:12]} 15. Qd2 {[%clk 0:02:00.4]}
15... a5 {[%clk 0:01:58.4]} 16. Bh6 {[%clk 0:01:47.2]} 16... a4 {[%clk
0:01:54.9]} 17. Bxg7 {[%clk 0:01:45.6]} 17... Kxg7 {[%clk 0:01:55.5]} 18. b4
{[%clk 0:01:43.7]} 18... a3 {[%clk 0:01:49.4]} 19. e4 {[%clk 0:01:37.9]} 19...
e5 {[%clk 0:01:46.4]} 20. dxe6 {[%clk 0:01:27.1]} 20... Bxe6 {[%clk 0:01:43.3]}
21. Nd4 {[%clk 0:01:05.4]} 21... Ndc4 {[%clk 0:01:16.4]} 22. Qg5 {[%clk
0:00:59.3]} 22... h6 {[%clk 0:01:09.1]} 23. Qc5 {[%clk 0:00:48.8]} 23... Nb2
{[%clk 0:00:58]} 24. Rd2 {[%clk 0:00:46]} 24... N6c4 {[%clk 0:00:54.9]} 25. Rdc2
{[%clk 0:00:19.2]} 25... b6 {[%clk 0:00:54.5]} 26. Nxe6+ {[%clk 0:00:18.6]}
26... Qxe6 {[%clk 0:00:32.1]} 27. Qd4+ {[%clk 0:00:19.5]} 27... Qe5 {[%clk
0:00:20.2]} 28. Qxe5+ {[%clk 0:00:18.7]} 28... Rxe5 {[%clk 0:00:17.5]} 29. f4
{[%clk 0:00:16.9]} 29... Ree8 {[%clk 0:00:17.4]} 30. Nd5 {[%clk 0:00:17.1]}
30... c6 {[%clk 0:00:11.7]} 31. Nc7 {[%clk 0:00:17.3]} 31... b5 {[%clk
0:00:12.3]} 32. Nxa8 {[%clk 0:00:16.3]} 32... Rxa8 {[%clk 0:00:12.7]} 33. e5
{[%clk 0:00:16]} 33... Rc8 {[%clk 0:00:11.1]} 34. Bf1 {[%clk 0:00:12.7]} 34...
Rd8 {[%clk 0:00:10.4]} 35. Bxc4 {[%clk 0:00:11.3]} 35... Nxc4 {[%clk 0:00:11.3]}
36. Kf2 {[%clk 0:00:11.6]} 36... Rd3 {[%clk 0:00:11]} 37. Re2 {[%clk 0:00:11]}
37... Kf8 {[%clk 0:00:10.3]} 38. e6 {[%clk 0:00:11]} 38... fxe6 {[%clk
0:00:06.9]} 39. Rxe6 {[%clk 0:00:11.9]} 39... Rd2+ {[%clk 0:00:07.4]} 40. Re2
{[%clk 0:00:11.9]} 40... Rd3 {[%clk 0:00:08.1]} 41. Rce1 {[%clk 0:00:11.6]}
41... Kf7 {[%clk 0:00:03.3]} 42. Re7+ {[%clk 0:00:11.4]} 42... Kf6 {[%clk
0:00:03.8]} 43. R7e6+ {[%clk 0:00:11.2]} 43... Kf5 {[%clk 0:00:03.7]} 44. Rxc6
{[%clk 0:00:09.3]} 44... Rd2+ {[%clk 0:00:03.3]} 45. Re2 {[%clk 0:00:09.5]}
45... Rd3 {[%clk 0:00:03.3]} 46. Rc5+ {[%clk 0:00:09.2]} 46... Kg4 {[%clk
0:00:03.9]} 47. Kg2 {[%clk 0:00:08.4]} 47... Ne3+ {[%clk 0:00:03.9]} 48. Rxe3
{[%clk 0:00:08.5]} 48... Rxe3 {[%clk 0:00:04.8]} 49. h3# {[%clk 0:00:08.7]} 1-0

[Event "*** Titled Tuesday Blitz"]
[Site "Chess.com"]
[Date "2021.02.16"]
[Round "7"]
[White "JoliyRoger"]
[Black "LEGENYA1998"]
[Result "0-1"]
[WhiteElo "2409"]
[BlackElo "2307"]
[TimeControl "180+1"]
[EndTime "11:19:22 PST"]
[Termination "LEGENYA1998 won on time"]

1. Nf3 {[%clk 0:02:57.4]} 1... Nf6 {[%clk 0:02:57.7]} 2. c4 {[%clk 0:02:57.8]}
2... c5 {[%clk 0:02:57.1]} 3. Nc3 {[%clk 0:02:57.8]} 3... e6 {[%clk 0:02:55.6]}
4. e3 {[%clk 0:02:58.1]} 4... a6 {[%clk 0:02:55.4]} 5. Be2 {[%clk 0:02:58]} 5...
Nc6 {[%clk 0:02:55.1]} 6. O-O {[%clk 0:02:58.6]} 6... d5 {[%clk 0:02:55.4]} 7.
cxd5 {[%clk 0:02:58.8]} 7... Nxd5 {[%clk 0:02:55.8]} 8. a3 {[%clk 0:02:57]} 8...
Nxc3 {[%clk 0:02:50.9]} 9. bxc3 {[%clk 0:02:56.6]} 9... e5 {[%clk 0:02:51.4]}
10. d4 {[%clk 0:02:48]} 10... cxd4 {[%clk 0:02:50.6]} 11. cxd4 {[%clk
0:02:48.5]} 11... exd4 {[%clk 0:02:51]} 12. exd4 {[%clk 0:02:48.9]} 12... Be6
{[%clk 0:02:43.6]} 13. Ng5 {[%clk 0:02:08.9]} 13... Bd5 {[%clk 0:02:42.1]} 14.
Bd3 {[%clk 0:02:05]} 14... Be7 {[%clk 0:02:35.4]} 15. Nxh7 {[%clk 0:01:32.4]}
15... g6 {[%clk 0:02:28.4]} 16. Re1 {[%clk 0:00:39.4]} 16... Rxh7 {[%clk
0:02:26.7]} 17. Bg5 {[%clk 0:00:40]} 17... Kf8 {[%clk 0:02:26.3]} 18. Bxe7+
{[%clk 0:00:32.2]} 18... Nxe7 {[%clk 0:02:26.5]} 19. Qe2 {[%clk 0:00:28.2]}
19... Qd6 {[%clk 0:02:23.6]} 20. g3 {[%clk 0:00:28.4]} 20... Re8 {[%clk
0:02:18.6]} 21. Rad1 {[%clk 0:00:20.2]} 21... Bc6 {[%clk 0:02:18.6]} 22. Qg4
{[%clk 0:00:16.7]} 22... Rh5 {[%clk 0:02:12.2]} 23. h4 {[%clk 0:00:15.7]} 23...
Bd5 {[%clk 0:01:45.5]} 24. Re3 {[%clk 0:00:13.8]} 24... Be6 {[%clk 0:01:43.9]}
25. Qe2 {[%clk 0:00:12.7]} 25... Nf5 {[%clk 0:01:24.7]} 26. Bxf5 {[%clk
0:00:10.9]} 26... Rxf5 {[%clk 0:01:24.5]} 27. Re1 {[%clk 0:00:08.8]} 27... Qxd4
{[%clk 0:01:19.6]} 28. Rd1 {[%clk 0:00:08.8]} 28... Qb6 {[%clk 0:01:15.8]} 29.
Qe1 {[%clk 0:00:06.1]} 29... Kg7 {[%clk 0:01:09.7]} 30. Qc3+ {[%clk 0:00:06.5]}
30... Kg8 {[%clk 0:01:07.6]} 31. Rde1 {[%clk 0:00:06.1]} 31... Qd6 {[%clk
0:00:53.6]} 32. a4 {[%clk 0:00:05.8]} 32... Rd5 {[%clk 0:00:47.1]} 33. Qf6
{[%clk 0:00:05.7]} 33... Rd1 {[%clk 0:00:42.8]} 34. h5 {[%clk 0:00:05.6]} 34...
Rxe1+ {[%clk 0:00:42.6]} 35. Rxe1 {[%clk 0:00:06]} 35... gxh5 {[%clk 0:00:39.3]}
36. Re5 {[%clk 0:00:03.6]} 36... Qd1+ {[%clk 0:00:36.6]} 37. Kh2 {[%clk
0:00:04.1]} 37... Kf8 {[%clk 0:00:22.7]} 38. Rg5 {[%clk 0:00:04.6]} 38... Qe2
{[%clk 0:00:14.3]} 39. Re5 {[%clk 0:00:05.2]} 39... Qg4 {[%clk 0:00:11.6]} 40.
Rg5 {[%clk 0:00:05.1]} 40... Qe2 {[%clk 0:00:10.7]} 41. Re5 {[%clk 0:00:05.2]}
41... Qc4 {[%clk 0:00:10.1]} 42. Qh8+ {[%clk 0:00:04.9]} 42... Ke7 {[%clk
0:00:10.1]} 43. Qh6 {[%clk 0:00:05.6]} 43... Qg4 {[%clk 0:00:08.7]} 44. Rg5
{[%clk 0:00:05.2]} 44... Qf3 {[%clk 0:00:07.3]} 45. Kg1 {[%clk 0:00:05.4]} 45...
Qd1+ {[%clk 0:00:06.9]} 46. Kh2 {[%clk 0:00:05.1]} 46... Qf3 {[%clk 0:00:06.9]}
47. Kg1 {[%clk 0:00:05.1]} 47... Rc8 {[%clk 0:00:06.9]} 48. Re5 {[%clk 0:00:04]}
48... Rc2 {[%clk 0:00:05.6]} 49. Qg5+ {[%clk 0:00:02.2]} 49... Kd7 {[%clk
0:00:05.3]} 0-1

[Event "*** Titled Tuesday Blitz"]
[Site "Chess.com"]
[Date "2021.02.16"]
[Round "7"]
[White "Berardino"]
[Black "1977Ivan"]
[Result "1/2-1/2"]
[WhiteElo "2594"]
[BlackElo "2736"]
[TimeControl "180+1"]
[EndTime "11:19:23 PST"]
[Termination "Game drawn by repetition"]

1. e4 {[%clk 0:02:59.9]} 1... e5 {[%clk 0:02:59.1]} 2. Bc4 {[%clk 0:02:55.9]}
2... f5 {[%clk 0:02:57.1]} 3. d3 {[%clk 0:02:46.7]} 3... Nf6 {[%clk 0:02:55.9]}
4. Nc3 {[%clk 0:02:44.8]} 4... c6 {[%clk 0:02:55.1]} 5. f4 {[%clk 0:02:43.5]}
5... d5 {[%clk 0:02:41.9]} 6. exd5 {[%clk 0:02:38.6]} 6... exf4 {[%clk 0:02:25]}
7. Bxf4 {[%clk 0:02:35.1]} 7... cxd5 {[%clk 0:02:24.5]} 8. Bb5+ {[%clk
0:02:35.5]} 8... Nc6 {[%clk 0:02:24.3]} 9. Qe2+ {[%clk 0:02:28.3]} 9... Be7
{[%clk 0:02:22.9]} 10. Nf3 {[%clk 0:02:22.9]} 10... d4 {[%clk 0:02:22.7]} 11.
Bxc6+ {[%clk 0:02:15.9]} 11... bxc6 {[%clk 0:02:23.6]} 12. Nd1 {[%clk
0:02:13.9]} 12... O-O {[%clk 0:02:22.5]} 13. O-O {[%clk 0:02:13.7]} 13... c5
{[%clk 0:02:22.2]} 14. b3 {[%clk 0:02:12.7]} 14... Nd5 {[%clk 0:02:21.3]} 15.
Bd2 {[%clk 0:02:10.4]} 15... Bd6 {[%clk 0:02:18.1]} 16. Nb2 {[%clk 0:02:09.5]}
16... Re8 {[%clk 0:02:11.4]} 17. Qf2 {[%clk 0:02:08.5]} 17... Ne3 {[%clk
0:02:09.3]} 18. Rfe1 {[%clk 0:02:00.1]} 18... f4 {[%clk 0:02:08.1]} 19. Nc4
{[%clk 0:01:58.3]} 19... Bc7 {[%clk 0:02:05.7]} 20. c3 {[%clk 0:01:50.2]} 20...
Bb7 {[%clk 0:02:02.1]} 21. cxd4 {[%clk 0:01:49.3]} 21... cxd4 {[%clk 0:02:03]}
22. Rac1 {[%clk 0:01:44.9]} 22... Rc8 {[%clk 0:02:02.9]} 23. Bb4 {[%clk
0:01:35.8]} 23... Qd5 {[%clk 0:02:00.7]} 24. Nfd2 {[%clk 0:01:29.7]} 24... Nxg2
{[%clk 0:01:51.3]} 25. Rxe8+ {[%clk 0:01:29.3]} 25... Rxe8 {[%clk 0:01:52.2]}
26. Ne4 {[%clk 0:01:30.2]} 26... Ne3 {[%clk 0:01:49.9]} 27. Ncd2 {[%clk
0:01:25.3]} 27... Qd7 {[%clk 0:01:27.1]} 28. Qf3 {[%clk 0:01:08.6]} 28... Re6
{[%clk 0:01:10.9]} 29. Nf6+ {[%clk 0:01:01.5]} 29... Rxf6 {[%clk 0:01:09.2]} 30.
Qxb7 {[%clk 0:01:02.4]} 30... Qg4+ {[%clk 0:01:05.9]} 31. Kh1 {[%clk 0:01:01.5]}
31... f3 {[%clk 0:00:59.6]} 32. Qa8+ {[%clk 0:00:55]} 32... Kf7 {[%clk
0:00:56.5]} 33. Rxc7+ {[%clk 0:00:55.3]} 33... Kg6 {[%clk 0:00:56.6]} 34. Qe4+
{[%clk 0:00:52.5]} 34... Qxe4 {[%clk 0:00:55.6]} 35. Nxe4 {[%clk 0:00:45.6]}
35... f2 {[%clk 0:00:55.2]} 36. Nxf2 {[%clk 0:00:45.3]} 36... Rxf2 {[%clk
0:00:56.1]} 37. h3 {[%clk 0:00:40.2]} 37... Rxa2 {[%clk 0:00:49.1]} 38. Bf8
{[%clk 0:00:37.4]} 38... Nf5 {[%clk 0:00:47.6]} 39. b4 {[%clk 0:00:30.8]} 39...
a6 {[%clk 0:00:46.4]} 40. Ra7 {[%clk 0:00:24.9]} 40... Kh5 {[%clk 0:00:25.1]}
41. b5 {[%clk 0:00:22.8]} 41... Ng3+ {[%clk 0:00:22.4]} 42. Kg1 {[%clk
0:00:22.7]} 42... Kh4 {[%clk 0:00:21.6]} 43. Rxg7 {[%clk 0:00:19.5]} 43... axb5
{[%clk 0:00:13.8]} 44. Rxh7+ {[%clk 0:00:19.7]} 44... Nh5 {[%clk 0:00:12.7]} 45.
Be7+ {[%clk 0:00:17.9]} 45... Kg3 {[%clk 0:00:12.8]} 46. Bd6+ {[%clk 0:00:18.3]}
46... Kh4 {[%clk 0:00:11.8]} 47. Be7+ {[%clk 0:00:18.5]} 47... Kg3 {[%clk
0:00:12]} 48. Bd6+ {[%clk 0:00:19]} 48... Nf4 {[%clk 0:00:11.2]} 49. Rg7+ {[%clk
0:00:10.9]} 49... Kf3 {[%clk 0:00:10.3]} 50. Rf7 {[%clk 0:00:11.4]} 50... Ra1+
{[%clk 0:00:09.9]} 51. Kh2 {[%clk 0:00:11.9]} 51... Ra2+ {[%clk 0:00:10.1]} 52.
Kg1 {[%clk 0:00:12.4]} 52... Ra1+ {[%clk 0:00:10.3]} 53. Kh2 {[%clk 0:00:13]}
53... Ra2+ {[%clk 0:00:10.5]} 54. Kg1 {[%clk 0:00:13.6]} 1/2-1/2